lending/lending_fUSD_20240219
["ID","MTS","AMOUNT","RATE_DAILY","PERIOD"]
[314502409,1708377144216,-745.48,0.00049863,30]
[314502410,1708377144226,-500.0,0.00049863,30]
[314502411,1708377144235,-761.98,0.00049863,30]
[314502412,1708377144244,-1070.44,0.00049863,30]
[314502413,1708377144254,-2405.19,0.00049863,30]
[314502414,1708377144263,-1483.04,0.00049863,30]
[314502415,1708377144273,-656.25,0.00049863,30]
[314502416,1708377144283,-500.0,0.00049863,30]
[314502417,1708377144292,-4891.81,0.00049863,30]
[314502418,1708377144302,-703.9,0.00049863,30]
[314502419,1708377144311,-1120.83,0.00049863,30]
[314502420,1708377144320,-500.0,0.00049863,30]
[314502421,1708377144329,-500.0,0.00049863,30]
[314502422,1708377144339,-7009.22,0.00049863,30]
[314502423,1708377144350,-5142.29,0.00049863,30]
[314502424,1708377144359,-583.58,0.00049863,30]
[314502425,1708377144368,-500.0,0.00049863,30]
[314502426,1708377144378,-1149.32,0.00049863,30]
[314502427,1708377144387,-244.54817993,0.00049863,30]
[314502428,1708377144397,-1818.57,0.00049863,30]
[314502429,1708377144406,-713.94,0.00049863,30]
[314502430,1708377144415,-550.56,0.00049863,30]
[314502431,1708377144425,-2123.12,0.00049863,30]
[314502432,1708377144435,-820.56,0.00049863,30]
[314502433,1708377144444,-500.0,0.00049863,30]
[314502434,1708377144454,-4375.89,0.00049863,30]
[314502435,1708377144464,-500.0,0.00049863,30]
[314502436,1708377144476,-1716.3,0.00049863,30]
[314502437,1708377144487,-1435.17,0.00049863,30]
[314502438,1708377144496,-1857.4,0.00049863,30]
[314502439,1708377144507,-505.27,0.00049863,2]
[314502440,1708377144519,-1170.62,0.00049863,30]
[314502441,1708377144529,-1644.0,0.00049863,30]
[314502442,1708377144538,-9747.42,0.00049863,30]
[314502443,1708377144549,-500.0,0.00049863,30]
[314502444,1708377144560,-699.58,0.00049863,30]
[314502445,1708377144570,-500.0,0.00049863,30]
[314502446,1708377144580,-1379.02,0.00049863,30]
[314502447,1708377144589,-500.0,0.00049863,30]
[314502448,1708377144600,-504.45,0.00049863,30]
[314502449,1708377144610,-1052.13,0.00049863,30]
[314502450,1708377144620,-211.24,0.00049863,30]
[314502451,1708377144630,-2820.04,0.00049863,30]
[314502452,1708377144640,-1201.01,0.00049863,30]
[314502453,1708377144651,-1773.34,0.00049863,30]
[314502454,1708377144661,-500.0,0.00049863,30]
[314502455,1708377144671,-2704.66,0.00049863,30]
[314502456,1708377144682,-1527.67,0.00049863,30]
[314502457,1708377144692,-3977.18,0.00049863,30]
[314502458,1708377144702,-500.0,0.00049863,30]
[314502459,1708377144711,-582.39,0.00049863,30]
[314502460,1708377144722,-825.53,0.00049863,30]
[314502461,1708377144732,-898.27,0.00049863,30]
[314502462,1708377144742,-2898.65,0.00049863,30]
[314502463,1708377144752,-500.0,0.00049863,30]
[314502464,1708377144762,-1746.66,0.00049863,30]
[314502465,1708377144773,-2731.53,0.00049863,30]
[314502466,1708377144782,-968.66,0.00049863,30]
[314502467,1708377144792,-500.0,0.00049863,30]
[314502468,1708377144801,-500.0,0.00049863,30]
[314502469,1708377144811,-500.0,0.00049863,30]
[314502470,1708377144820,-857.25,0.00049863,30]
[314502471,1708377144830,-1486.37,0.00049863,30]
[314502472,1708377144839,-1149.63,0.00049863,30]
[314502473,1708377144851,-1224.19,0.00049863,30]
[314502474,1708377144861,-1388.67,0.00049863,30]
[314502475,1708377144871,-1243.1,0.00049863,30]
[314502476,1708377144881,-740.69,0.00049863,30]
[314502477,1708377144891,-1119.06,0.00049863,30]
[314502478,1708377144901,-500.0,0.00049863,30]
[314502479,1708377144910,-500.0,0.00049863,30]
[314502480,1708377144920,-995.4,0.00049863,30]
[314502481,1708377144930,-780.29,0.00049863,30]
[314502482,1708377144940,-500.0,0.00049863,30]
[314502483,1708377144950,-1750.39,0.00049863,30]
[314502484,1708377144960,-734.28,0.00049863,30]
[314502485,1708377144970,-1107.14,0.00049863,30]
[314502486,1708377144979,-500.0,0.00049863,30]
[314502487,1708377144989,-8099.08,0.00049863,30]
[314502488,1708377144998,-500.0,0.00049863,30]
[314502489,1708377145008,-518.58,0.00049863,30]
[314502490,1708377145018,-575.48,0.00049863,30]
[314502491,1708377145030,-500.0,0.00049863,30]
[314502492,1708377145040,-916.64,0.00049863,30]
[314502493,1708377145049,-916.64,0.00049863,30]
[314502494,1708377145060,-571.0,0.00049863,120]
[314502495,1708377145071,-150.0,0.00049865,7]
[314502496,1708377145081,-150.0,0.00049869,7]
[314502497,1708377145090,-183.55788995,0.00049874,7]
[314502498,1708377145102,-150.0,0.00049889,7]
[314502499,1708377145112,-10000.0,0.0004989,10]
[314502500,1708377145121,-156.62887964,0.0004989,30]
[314502501,1708377145131,-150.0,0.00049899,7]
[314502502,1708377145141,-150.0,0.00049899,7]
[314502503,1708377145151,-150.0,0.00049903,7]
[314502504,1708377145161,-150.0,0.00049913,7]
[314502505,1708377145171,-152.51359009,0.00049914,30]
[314502506,1708377145181,-1500.0,0.00049915,7]
[314502507,1708377145190,-154.0583357,0.00049916,30]
[314502508,1708377145200,-150.0,0.00049935,7]
[314502509,1708377145209,-300.0,0.00049958,7]
[314502510,1708377145219,-150.0,0.00049973,7]
[314502511,1708377145229,-150.0,0.00049995,7]
[314502512,1708377145238,-150.0,0.00049997,7]
[314502513,1708377145248,-300.02,0.00049999,2]
[314502514,1708377145257,-3319.32799788,0.00049999,2]
[314502515,1708377145267,-82633.33580512,0.0005,60]
[314502516,1708377145277,-2200.0,0.0005,80]
[314502517,1708377145288,-1700.0,0.0005,79]
[314502518,1708377145298,-20408.34121443,0.0005,14]
[314502519,1708377145308,-12673.49160331,0.0005,120]
[314502520,1708377145317,-605.3790803,0.0005,30]
[314502521,1708377145326,-100645.59640286,0.0005,120]
[314502522,1708377145336,-10000.0,0.0005,28]
[314502523,1708377145346,-1506.47,0.0005,120]
[314502524,1708377145357,-363.81887212,0.0005,120]
[314502525,1708377145366,-1751.20015561,0.0005,30]
[314502526,1708377145376,-1069.10026717,0.0005,28]
[314502527,1708377145386,-1000.0,0.0005,60]
[314502528,1708377145395,-885.03611282,0.0005,120]
[314502529,1708377145405,-558.85588848,0.0005,2]
[314502530,1708377145415,-13360.06118111,0.0005,60]
[314502531,1708377145425,-1176.21563875,0.0005,30]
[314502532,1708377145435,-82726.26484447,0.0005,40]
[314502533,1708377145444,-200.0,0.0005,120]
[314502534,1708377145454,-9681.18766323,0.0005,90]
[314502535,1708377145467,-150.0,0.0005,20]
[314502536,1708377145476,-5257.42430288,0.0005,30]
[314502537,1708377145486,-340.28312175,0.0005,30]
[314502538,1708377145496,-236.50128447,0.0005,30]
[314502539,1708377145507,-461.82506422,0.0005,30]
[314502540,1708377145517,-3451.75741256,0.0005,45]
[314502541,1708377145527,-290.73459233,0.0005,120]
[314502542,1708377145537,-3683.61,0.0005,5]
[314502543,1708377145548,-2500.0,0.0005,120]
[314502544,1708377145558,-2822.26418612,0.0005,10]
[314502545,1708377145569,-2000.0,0.0005,15]
[314502546,1708377145579,-200.0,0.0005,15]
[314502547,1708377145589,-200.0,0.0005,25]
[314502548,1708377145599,-116171.0,0.0005,11]
[314502549,1708377145610,-150.0,0.0005,27]
[314502550,1708377145619,-21720.0,0.0005,120]
[314502551,1708377145629,-16000.0,0.0005,50]
[314502552,1708377145638,-200.0,0.0005,27]
[314502553,1708377145648,-200.0,0.0005,27]
[314502554,1708377145658,-207.81885,0.0005,31]
[314502555,1708377145668,-238.56063,0.0005,31]
[314502556,1708377145678,-2064.0,0.0005,30]
[314502557,1708377145687,-4133.834578,0.0005,31]
[314502558,1708377145697,-1991.91729,0.0005,31]
[314502559,1708377145707,-1991.917289,0.0005,31]
[314502560,1708377145717,-1991.917289,0.0005,31]
[314502561,1708377145726,-200.0,0.0005,27]
[314502562,1708377145737,-648.0,0.0005,30]
[314502563,1708377145747,-778.71598288,0.0005,30]
[314502564,1708377145757,-719.52752409,0.0005,30]
[314502565,1708377145768,-335.0,0.0005,30]
[314502566,1708377145778,-1000.0,0.0005,40]
[314502567,1708377145788,-2000.0,0.0005,15]
[314502568,1708377145798,-200.0,0.0005,15]
[314502569,1708377145808,-4540.5512143,0.00050005,2]
[314502570,1708377145818,-4220.6402406,0.00050005,2]
[314502571,1708377145828,-3900.7292669,0.00050005,2]
[314502572,1708377145838,-3580.8182932,0.00050005,2]
[314502573,1708377145849,-3260.9073196,0.00050005,2]
[314502574,1708377145861,-2940.9963459,0.00050005,2]
[314502575,1708377145872,-14793.3607523,0.00050005,2]
[314502576,1708377145883,-18004.9030618,0.00050005,2]
[314502577,1708377145894,-21216.4453714,0.00050005,2]
[314502578,1708377145905,-24427.987681,0.00050005,2]
[314502579,1708377145916,-27639.5299906,0.00050005,2]
[314502580,1708377145926,-30851.0723001,0.00050005,2]
[314502581,1708377145937,-205.3313188,0.00050005,2]
[314502582,1708377145947,-205.3313188,0.00050005,2]
[314502583,1708377145957,-205.3313188,0.00050005,2]
[314502584,1708377145968,-205.3313188,0.00050005,2]
[314502585,1708377145979,-205.3313188,0.00050005,2]
[314502586,1708377145989,-205.3313188,0.00050005,2]
[314502587,1708377145998,-152.51359009,0.00050007,60]
[314502588,1708377146008,-153.13804571,0.00050039,44]
[314502589,1708377146018,-165.78496257,0.00050048,60]
[314502590,1708377146028,-161.25919619,0.00050051,60]
[314502591,1708377146038,-166.66666667,0.00050055,120]
[314502592,1708377146049,-152.15374603,0.00050068,60]
[314502593,1708377146059,-150.06910513,0.00050092,60]
[314502594,1708377146069,-1000.0,0.000501,7]
[314502595,1708377146079,-161.25919619,0.00050124,60]
[314502596,1708377146088,-500.0,0.00050136,30]
[314502597,1708377146101,-500.0,0.00050136,30]
[314502598,1708377146110,-500.0,0.00050136,30]
[314502599,1708377146120,-500.0,0.00050136,30]
[314502600,1708377146130,-558.6,0.00050136,30]
[314502601,1708377146140,-380.73179058,0.00050136,30]
[314502602,1708377146149,-500.0,0.00050136,30]
[314502603,1708377146160,-602.01,0.00050136,30]
[314502604,1708377146170,-500.0,0.00050136,30]
[314502605,1708377146179,-512.36,0.00050136,30]
[314502606,1708377146189,-732.56,0.00050136,30]
[314502607,1708377146198,-605.18,0.00050136,30]
[314502608,1708377146207,-500.0,0.00050136,30]
[314502609,1708377146217,-573.89,0.00050136,30]
[314502610,1708377146227,-500.0,0.00050136,30]
[314502611,1708377146236,-169.23042087,0.00050136,30]
[314502612,1708377146246,-606.28,0.00050136,30]
[314502613,1708377146256,-1049.77,0.00050136,30]
[314502614,1708377146266,-500.0,0.00050136,30]
[314502615,1708377146276,-500.0,0.00050136,30]
[314502616,1708377146285,-500.0,0.00050136,30]
[314502617,1708377146295,-500.0,0.00050136,30]
[314502618,1708377146305,-500.0,0.00050136,30]
[314502619,1708377146314,-500.0,0.00050136,30]
[314502620,1708377146324,-500.0,0.00050136,30]
[314502621,1708377146334,-544.97,0.00050136,30]
[314502622,1708377146344,-500.0,0.00050136,30]
[314502623,1708377146356,-500.0,0.00050136,30]
[314502624,1708377146365,-500.0,0.00050136,30]
[314502625,1708377146375,-500.0,0.00050136,30]
[314502626,1708377146385,-500.0,0.00050136,30]
[314502627,1708377146395,-500.0,0.00050136,30]
[314502628,1708377146405,-500.0,0.00050136,30]
[314502629,1708377146414,-500.0,0.00050136,30]
[314502630,1708377146424,-500.0,0.00050136,30]
[314502631,1708377146434,-505.06,0.00050136,30]
[314502632,1708377146445,-500.0,0.00050136,30]
[314502633,1708377146455,-1141.6,0.00050136,30]
[314502634,1708377146464,-500.0,0.00050136,30]
[314502635,1708377146476,-488.08,0.00050136,30]
[314502636,1708377146486,-500.0,0.00050136,30]
[314502637,1708377146496,-500.0,0.00050136,30]
[314502638,1708377146507,-569.69,0.00050136,30]
[314502639,1708377146516,-567.74,0.00050136,30]
[314502640,1708377146527,-777.32,0.00050136,2]
[314502641,1708377146537,-500.0,0.00050136,30]
[314502642,1708377146547,-603.14,0.00050136,30]
[314502643,1708377146557,-500.0,0.00050136,30]
[314502644,1708377146568,-500.0,0.00050136,30]
[314502645,1708377146577,-500.0,0.00050136,30]
[314502646,1708377146588,-750.4,0.00050136,30]
[314502647,1708377146600,-599.04,0.00050136,30]
[314502648,1708377146609,-500.0,0.00050136,30]
[314502649,1708377146619,-500.0,0.00050136,30]
[314502650,1708377146629,-500.0,0.00050136,30]
[314502651,1708377146639,-500.0,0.00050136,30]
[314502652,1708377146649,-253.52878604,0.00050136,30]
[314502653,1708377146659,-500.0,0.00050136,30]
[314502654,1708377146852,-500.0,0.00050136,30]
[314502655,1708377146873,-690.28,0.00050136,30]
[314502656,1708377146883,-784.44,0.00050136,30]
[314502657,1708377146893,-500.0,0.00050136,30]
[314502658,1708377146902,-533.46,0.00050136,30]
[314502659,1708377146912,-490.52961256,0.00050136,30]
[314502660,1708377146921,-712.44,0.00050136,30]
[314502661,1708377146931,-568.95,0.00050136,30]
[314502662,1708377146940,-543.64,0.00050136,30]
[314502663,1708377146950,-500.0,0.00050136,30]
[314502664,1708377146960,-500.0,0.00050136,30]
[314502665,1708377146970,-513.43,0.00050136,30]
[314502666,1708377146980,-1175.74,0.00050136,30]
[314502667,1708377146989,-500.0,0.00050136,30]
[314502668,1708377146999,-500.0,0.00050136,30]
[314502669,1708377147008,-500.0,0.00050136,30]
[314502670,1708377147018,-500.0,0.00050136,30]
[314502671,1708377147028,-500.0,0.00050136,30]
[314502672,1708377147037,-500.0,0.00050136,30]
[314502673,1708377147046,-500.0,0.00050136,30]
[314502674,1708377147056,-500.0,0.00050136,30]
[314502675,1708377147065,-500.0,0.00050136,30]
[314502676,1708377147075,-523.21,0.00050136,30]
[314502677,1708377147084,-521.63,0.00050136,30]
[314502678,1708377147094,-500.0,0.00050136,30]
[314502679,1708377147105,-500.0,0.00050136,30]
[314502680,1708377147114,-500.0,0.00050136,30]
[314502681,1708377147124,-513.88,0.00050136,30]
[314502682,1708377147134,-500.0,0.00050136,30]
[314502683,1708377147143,-500.0,0.00050136,30]
[314502684,1708377147156,-500.0,0.00050136,30]
[314502685,1708377147166,-660.98,0.00050136,30]
[314502686,1708377147175,-500.0,0.00050136,30]
[314502687,1708377147184,-500.0,0.00050136,30]
[314502688,1708377147193,-588.08,0.00050136,30]
[314502689,1708377147203,-500.0,0.00050136,30]
[314502690,1708377147212,-226.58,0.00050136,30]
[314502691,1708377147222,-555.82,0.00050136,30]
[314502692,1708377147231,-597.62,0.00050136,30]
[314502693,1708377147240,-611.78,0.00050136,30]
[314502694,1708377147250,-500.0,0.00050136,30]
[314502695,1708377147259,-918.19,0.00050136,30]
[314502696,1708377147269,-578.31,0.00050136,30]
[314502697,1708377147278,-500.0,0.00050136,30]
[314502698,1708377147288,-500.0,0.00050136,30]
[314502699,1708377147297,-527.96,0.00050136,30]
[314502700,1708377147307,-500.0,0.00050136,30]
[314502701,1708377147317,-553.98,0.00050136,30]
[314502702,1708377147326,-500.0,0.00050136,30]
[314502703,1708377147336,-500.0,0.00050136,30]
[314502704,1708377147345,-352.78,0.00050136,30]
[314502705,1708377147356,-529.69,0.00050136,30]
[314502706,1708377147365,-500.0,0.00050136,30]
[314502707,1708377147374,-500.0,0.00050136,30]
[314502708,1708377147383,-500.0,0.00050136,30]
[314502709,1708377147393,-2039.93,0.00050136,30]
[314502710,1708377147402,-295.72483582,0.00050136,30]
[314502711,1708377147411,-556.74,0.00050136,30]
[314502712,1708377147421,-500.0,0.00050136,30]
[314502713,1708377147430,-692.58,0.00050136,30]
[314502714,1708377147439,-1605.07,0.00050136,30]
[314502715,1708377147449,-552.5,0.00050136,30]
[314502716,1708377147458,-500.0,0.00050136,30]
[314502717,1708377147468,-500.0,0.00050136,30]
[314502718,1708377147479,-500.0,0.00050136,30]
[314502719,1708377147489,-1090.94,0.00050136,30]
[314502720,1708377147498,-500.0,0.00050136,30]
[314502721,1708377147509,-591.77,0.00050136,30]
[314502722,1708377147519,-500.0,0.00050136,30]
[314502723,1708377147528,-664.26,0.00050136,30]
[314502724,1708377147538,-500.0,0.00050136,30]
[314502725,1708377147547,-1161.62,0.00050136,30]
[314502726,1708377147559,-500.0,0.00050136,30]
[314502727,1708377147569,-4690.89,0.00050136,30]
[314502728,1708377147578,-646.62,0.00050136,30]
[314502729,1708377147588,-635.19,0.00050136,30]
[314502730,1708377147597,-514.25,0.00050136,30]
[314502731,1708377147607,-667.9,0.00050136,30]
[314502732,1708377147617,-2224.42,0.00050136,30]
[314502733,1708377147626,-538.23,0.00050136,30]
[314502734,1708377147635,-500.0,0.00050136,30]
[314502735,1708377147644,-500.0,0.00050136,30]
[314502736,1708377147653,-516.68,0.00050136,30]
[314502737,1708377147663,-1819.91,0.00050136,30]
[314502738,1708377147672,-615.42,0.00050136,30]
[314502739,1708377147682,-500.0,0.00050136,30]
[314502740,1708377147691,-500.0,0.00050136,30]
[314502741,1708377147701,-500.0,0.00050136,30]
[314502742,1708377147710,-617.0,0.00050136,30]
[314502743,1708377147720,-544.62,0.00050136,30]
[314502744,1708377147729,-809.73,0.00050136,30]
[314502745,1708377147739,-500.0,0.00050136,30]
[314502746,1708377147748,-500.0,0.00050136,30]
[314502747,1708377147757,-500.0,0.00050136,30]
[314502748,1708377147767,-500.0,0.00050136,30]
[314502749,1708377147776,-500.0,0.00050136,30]
[314502750,1708377147785,-500.0,0.00050136,30]
[314502751,1708377147795,-500.0,0.00050136,30]
[314502752,1708377147804,-1052.96,0.00050136,30]
[314502753,1708377147813,-553.52,0.00050136,30]
[314502754,1708377147823,-590.34,0.00050136,30]
[314502755,1708377147832,-500.0,0.00050136,30]
[314502756,1708377147842,-566.64,0.00050136,30]
[314502757,1708377147853,-500.0,0.00050136,30]
[314502758,1708377147863,-500.0,0.00050136,30]
[314502759,1708377147873,-500.0,0.00050136,30]
[314502760,1708377147882,-500.0,0.00050136,30]
[314502761,1708377147891,-519.09,0.00050136,30]
[314502762,1708377147901,-772.36,0.00050136,30]
[314502763,1708377147910,-1319.16,0.00050136,30]
[314502764,1708377147919,-500.0,0.00050136,30]
[314502765,1708377147928,-500.0,0.00050136,30]
[314502766,1708377147938,-500.0,0.00050136,30]
[314502767,1708377147947,-558.08,0.00050136,30]
[314502768,1708377147957,-767.53,0.00050136,30]
[314502769,1708377147966,-886.59,0.00050136,30]
[314502770,1708377147975,-500.0,0.00050136,30]
[314502771,1708377147985,-677.61,0.00050136,30]
[314502772,1708377147995,-521.79,0.00050136,30]
[314502773,1708377148004,-500.0,0.00050136,30]
[314502774,1708377148014,-594.14,0.00050136,30]
[314502775,1708377148024,-500.0,0.00050136,30]
[314502776,1708377148034,-781.41,0.00050136,30]
[314502777,1708377148044,-500.0,0.00050136,30]
[314502778,1708377148053,-745.38,0.00050136,30]
[314502779,1708377148064,-1287.42,0.00050136,30]
[314502780,1708377148073,-500.0,0.00050136,30]
[314502781,1708377148083,-500.0,0.00050136,30]
[314502782,1708377148093,-230.11,0.00050136,30]
[314502783,1708377148103,-355.2358985,0.00050136,30]
[314502784,1708377148112,-1082.3,0.00050136,30]
[314502785,1708377148121,-1242.47,0.00050136,30]
[314502786,1708377148131,-500.0,0.00050136,30]
[314502787,1708377148140,-627.94,0.00050136,30]
[314502788,1708377148149,-500.0,0.00050136,30]
[314502789,1708377148158,-505.9,0.00050136,30]
[314502790,1708377148168,-500.0,0.00050136,30]
[314502791,1708377148177,-529.79,0.00050136,30]
[314502792,1708377148187,-536.14,0.00050136,30]
[314502793,1708377148196,-500.0,0.00050136,30]
[314502794,1708377148206,-924.48,0.00050136,30]
[314502795,1708377148215,-3104.74,0.00050136,30]
[314502796,1708377148224,-523.82,0.00050136,30]
[314502797,1708377148234,-557.18,0.00050136,30]
[314502798,1708377148243,-500.0,0.00050136,30]
[314502799,1708377148253,-1017.28,0.00050136,30]
[314502800,1708377148262,-2181.83,0.00050136,30]
[314502801,1708377148272,-804.05,0.00050136,30]
[314502802,1708377148296,-500.0,0.00050136,30]
[314502803,1708377148312,-837.03,0.00050136,30]
[314502804,1708377148332,-1389.72,0.00050136,30]
[314502805,1708377148350,-2026.93,0.00050136,30]
[314502806,1708377148366,-654.5,0.00050136,30]
[314502807,1708377148383,-771.23,0.00050136,30]
[314502808,1708377148402,-500.44,0.00050136,30]
[314502809,1708377148419,-500.0,0.00050136,30]
[314502810,1708377148437,-604.81,0.00050136,30]
[314502811,1708377148453,-553.77547032,0.00050136,30]
[314502812,1708377148472,-1426.77,0.00050136,30]
[314502813,1708377148495,-1086.95,0.00050136,30]
[314502814,1708377148508,-527.43,0.00050136,30]
[314502815,1708377148524,-500.0,0.00050136,30]
[314502816,1708377148541,-1745.38,0.00050136,30]
[314502817,1708377148554,-1075.7,0.00050136,30]
[314502818,1708377148573,-1268.71,0.00050136,30]
[314502819,1708377148588,-886.05,0.00050136,30]
[314502820,1708377148603,-899.22,0.00050136,30]
[314502821,1708377148617,-735.92,0.00050136,30]
[314502822,1708377148633,-1833.32,0.00050136,30]
[314502823,1708377148648,-2702.11,0.00050136,30]
[314502824,1708377148662,-500.0,0.00050136,30]
[314502825,1708377148678,-10950.38,0.00050136,30]
[314502826,1708377148693,-741.32,0.00050136,30]
[314502827,1708377148708,-3140.24,0.00050136,30]
[314502828,1708377148723,-878.99,0.00050136,30]
[314502829,1708377148738,-2678.83,0.00050136,30]
[314502830,1708377148753,-500.0,0.00050136,30]
[314502831,1708377148768,-500.0,0.00050136,30]
[314502832,1708377148784,-1835.49,0.00050136,30]
[314502833,1708377148800,-694.62,0.00050136,30]
[314502834,1708377148815,-503.56,0.00050136,30]
[314502835,1708377148830,-20395.47,0.00050136,30]
[314502836,1708377148845,-2331.98,0.00050136,30]
[314502837,1708377148861,-599.22,0.00050136,30]
[314502838,1708377148876,-1756.54,0.00050136,30]
[314502839,1708377148891,-789.92,0.00050136,30]
[314502840,1708377148906,-1530.72,0.00050136,30]
[314502841,1708377148921,-780.99,0.00050136,30]
[314502842,1708377148935,-500.0,0.00050136,30]
[314502843,1708377148950,-2037.65,0.00050136,30]
[314502844,1708377148965,-562.3,0.00050136,30]
[314502845,1708377148982,-898.46,0.00050136,30]
[314502846,1708377148997,-796.83,0.00050136,30]
[314502847,1708377149011,-1380.27,0.00050136,30]
[314502848,1708377149025,-500.0,0.00050136,30]
[314502849,1708377149040,-1316.81,0.00050136,30]
[314502850,1708377149055,-677.42,0.00050136,30]
[314502851,1708377149070,-515.48,0.00050136,30]
[314502852,1708377149086,-3662.65,0.00050136,30]
[314502853,1708377149100,-500.0,0.00050136,30]
[314502854,1708377149115,-500.0,0.00050136,30]
[314502855,1708377149129,-1284.51,0.00050136,30]
[314502856,1708377149145,-679.93,0.00050136,30]
[314502857,1708377149160,-957.91,0.00050136,30]
[314502858,1708377149175,-768.65,0.00050136,30]
[314502859,1708377149190,-500.0,0.00050136,30]
[314502860,1708377149205,-500.0,0.00050136,30]
[314502861,1708377149219,-5456.49,0.00050136,30]
[314502862,1708377149233,-2893.51,0.00050136,30]
[314502863,1708377149247,-500.0,0.00050136,30]
[314502864,1708377149262,-2571.27,0.00050136,30]
[314502865,1708377149276,-826.56,0.00050136,30]
[314502866,1708377149291,-1599.05,0.00050136,30]
[314502867,1708377149305,-500.0,0.00050136,30]
[314502868,1708377149320,-569.48,0.00050136,30]
[314502869,1708377149334,-721.27,0.00050136,30]
[314502870,1708377149351,-2039.63,0.00050136,30]
[314502871,1708377149366,-1426.52,0.00050136,30]
[314502872,1708377149382,-1623.95,0.00050136,30]
[314502873,1708377149396,-2095.21,0.00050136,30]
[314502874,1708377149412,-727.3,0.00050136,30]
[314502875,1708377149426,-354.99,0.00050136,30]
[314502876,1708377149441,-500.0,0.00050136,30]
[314502877,1708377149455,-846.21,0.00050136,30]
[314502878,1708377149471,-1638.65,0.00050136,30]
[314502879,1708377149489,-1395.59,0.00050136,30]
[314502880,1708377149503,-586.56,0.00050136,30]
[314502881,1708377149519,-1364.92,0.00050136,30]
[314502882,1708377149535,-1945.02,0.00050136,30]
[314502883,1708377149549,-628.31,0.00050136,30]
[314502884,1708377149564,-500.0,0.00050136,30]
[314502885,1708377149578,-1041.23,0.00050136,30]
[314502886,1708377149594,-2020.6,0.00050136,30]
[314502887,1708377149608,-500.0,0.00050136,30]
[314502888,1708377149622,-500.0,0.00050136,30]
[314502889,1708377149636,-500.0,0.00050136,30]
[314502890,1708377149651,-500.0,0.00050136,30]
[314502891,1708377149665,-2298.57,0.00050136,30]
[314502892,1708377149680,-500.0,0.00050136,30]
[314502893,1708377149694,-500.0,0.00050136,30]
[314502894,1708377149709,-1046.88,0.00050136,30]
[314502895,1708377149722,-1430.94,0.00050136,30]
[314502896,1708377149736,-500.0,0.00050136,30]
[314502897,1708377149750,-1313.08,0.00050136,30]
[314502898,1708377149763,-500.0,0.00050136,30]
[314502899,1708377149778,-990.31,0.00050136,30]
[314502900,1708377149793,-941.5,0.00050136,30]
[314502901,1708377149807,-11885.76,0.00050136,30]
[314502902,1708377149821,-500.0,0.00050136,30]
[314502903,1708377149835,-8772.79,0.00050136,30]
[314502904,1708377149850,-2710.69,0.00050136,30]
[314502905,1708377149865,-1007.39,0.00050136,30]
[314502906,1708377149879,-500.0,0.00050136,30]
[314502907,1708377149893,-2030.96,0.00050136,30]
[314502908,1708377149907,-500.0,0.00050136,30]